Workbook

Sheet Information
A2: Kalulationshilfe Frühstücksangebot auf Ferienhöfen - Tischfrühstück
A4: 1) Wareneinsatz: | D4: Frühstücksportionen für Erwachsene und Kinder zusammenstellen und ggf. Mengen- bzw. Preisangaben individuell anpassen
A5: 2) Angaben DB: | D5: allgemeine Angaben zum Betrieb und dem Frühstücksangebot eintragen
A6: 3) Ergebnis DB kurz: | D6: kompakte Ergebnis-Darstellung zu Deckungsbeitrags- und Vollkosten-Berechnung
A7: 4) DB Grafik: | D7: grafische Darstellung der Rentabilität
A8: 5) Ergebnis DB ausführlich: | D8: ausführliche Darstellung der Deckungsbeitrags- und Vollkosten-Berechnung
A10: Für Fragen und Anregungen rund um die Excel-Anwendung stehen wir Ihnen gerne zur Verfügung.
A12: Ansprechpartnerin:
A13: Julia Saller
A14: Bayerische Landesanstalt für Landwirtschaft
A15: Institut für Betriebsstruktur und Agrarökonomie
A16: Diversifizierung - Tourismus im ländlichen Raum
A17: Kleeberg 14
A18: 94099 Ruhstorf a. d. Rott
A19: Telefon +49 8161 8640-5709
A20: julia.saller@lfl.bayern.de
A27: Bayerische Landesanstalt für Landwirtschaft, Institut für Betriebswirtschaft und Agrarstruktur, Dezember 2021

Sheet 1) Wareneinsatz
D1: =D58 -> Wareneinsatz Frühstück Erwachsene | G1: =G58 -> 4.64475 | I1: =I58 -> Wareneinsatz Frühstück Kinder | L1: =L58 -> 2.41075 | N1: Menge pro Portion | P1: brutto | R1: netto | W1: Preisvorschlag IBA (brutto)
A2: Eingabefelder | C2: Produkt | D2: konvent-ionell | E2: €/Portion | F2: ökologisch | G2: €/Portion | I2: konvent-ionell | J2: €/Portion | K2: ökologisch | L2: €/Portion | P2: konvent-ionell | Q2: öko-logisch | R2: konvent-ionell | S2: öko-logisch | T2: €/Einheit | U2: MwSt. in % | W2: konvent-ionell | X2: öko-logisch
A4: Bruttorechner | C4: Kaffee | D4: TRUE | E4: =IF(D4, (IF($A$5,P4/1000*N4,R4/1000*N4)), 0) -> 0.1724 | F4: FALSE | G4: =IF(F4, (IF($A$5,Q4/1000*N4,S4/1000*N4)), 0) -> 0 | I4: FALSE | J4: =IF(I4, (IF($A$5,P4/1000*N4,R4/1000*N4)), 0) -> 0 | K4: FALSE | L4: =IF(K4, (IF($A$5,Q4/1000*N4,S4/1000*N4)), 0) -> 0 | N4: 20 | O4: g | P4: =(5.88+11.36)/2 -> 8.62 | Q4: =(7.96+19.7)/2 -> 13.83 | R4: =P4/(1+(U4/100)) -> 8.056074766 | S4: =Q4/(1+(U4/100)) -> 12.92523364 | T4: €/kg | U4: 7 | W4: =(5.88+11.36)/2 -> 8.62 | X4: =(7.96+19.7)/2 -> 13.83
A5: TRUE | C5: Milch für Kaffee | D5: FALSE | E5: =IF(D5, (IF($A$5,P5/1000*N5,R5/1000*N5)), 0) -> 0 | F5: TRUE | G5: =IF(F5, (IF($A$5,Q5/1000*N5,S5/1000*N5)), 0) -> 0.1705 | I5: FALSE | J5: =IF(I5, (IF($A$5,P5/1000*N5,R5/1000*N5)), 0) -> 0 | K5: FALSE | L5: =IF(K5, (IF($A$5,Q5/1000*N5,S5/1000*N5)), 0) -> 0 | N5: 100 | O5: ml | P5: =(0.79+1.19)/2 -> 0.99 | Q5: =(0.99+2.42)/2 -> 1.705 | R5: =P5/(1+(U5/100)) -> 0.9252336449 | S5: =Q5/(1+(U5/100)) -> 1.593457944 | T5: €/l | U5: 7 | W5: =(0.79+1.19)/2 -> 0.99 | X5: =(0.99+2.42)/2 -> 1.705
A6: FALSE | C6: Zucker | D6: FALSE | E6: =IF(D6, (IF($A$5,P6/1000*N6,R6/1000*N6)), 0) -> 0 | F6: FALSE | G6: =IF(F6, (IF($A$5,Q6/1000*N6,S6/1000*N6)), 0) -> 0 | I6: FALSE | J6: =IF(I6, (IF($A$5,P6/1000*N6,R6/1000*N6)), 0) -> 0 | K6: FALSE | L6: =IF(K6, (IF($A$5,Q6/1000*N6,S6/1000*N6)), 0) -> 0 | N6: 10 | O6: g | P6: =(0.59+0.95)/2 -> 0.77 | Q6: =(2.58+2.98)/2 -> 2.78 | R6: =P6/(1+(U6/100)) -> 0.7196261682 | S6: 2.598130841 | T6: €/kg | U6: 7 | W6: =(0.59+0.95)/2 -> 0.77 | X6: =(2.58+2.98)/2 -> 2.78
C7: Tee | D7: FALSE | E7: =IF(D7, (IF($A$5,P7/1000*N7,R7/1000*N7)), 0) -> 0 | F7: FALSE | G7: =IF(F7, (IF($A$5,Q7/1000*N7,S7/1000*N7)), 0) -> 0 | I7: FALSE | J7: =IF(I7, (IF($A$5,P7/1000*N7,R7/1000*N7)), 0) -> 0 | K7: FALSE | L7: =IF(K7, (IF($A$5,Q7/1000*N7,S7/1000*N7)), 0) -> 0 | N7: 1 | O7: B. | P7: =3/20*1000 -> 150 | Q7: =3/20*1000 -> 150 | R7: =P7/(1+(U7/100)) -> 140.1869159 | S7: 140.1869159 | T7: €/1000 B. | U7: 7 | W7: =3/20*1000 -> 150 | X7: =3/20*1000 -> 150
C8: Milch als Getränk | D8: FALSE | E8: =IF(D8, (IF($A$5,P8/1000*N8,R8/1000*N8)), 0) -> 0 | F8: FALSE | G8: =IF(F8, (IF($A$5,Q8/1000*N8,S8/1000*N8)), 0) -> 0 | I8: FALSE | J8: =IF(I8, (IF($A$5,P8/1000*N8,R8/1000*N8)), 0) -> 0 | K8: FALSE | L8: =IF(K8, (IF($A$5,Q8/1000*N8,S8/1000*N8)), 0) -> 0 | N8: 250 | O8: ml | P8: =P5 -> 0.99 | Q8: =Q5 -> 1.705 | R8: 0.9252336449 | S8: 1.593457944 | T8: =T5 -> €/l | U8: 7 | W8: =W5 -> 0.99 | X8: =X5 -> 1.705
C9: Kakaogetränk (Kabapulver, Milch) | D9: FALSE | E9: =IF(D9, (IF($A$5,((P9/1000*N9)+(P8/1000*N8)),((R9/1000*N9)+(R8/1000*N8)))), 0) -> 0 | F9: FALSE | G9: =IF(F9, (IF($A$5,((Q9/1000*N9)+(Q8/1000*N8)),((S9/1000*N9)+(S8/1000*N8)))), 0) -> 0 | I9: TRUE | J9: =IF(I9, (IF($A$5,((P9/1000*N9)+(P8/1000*N8)),((R9/1000*N9)+(R8/1000*N8)))), 0) -> 0.364 | K9: FALSE | L9: =IF(K9, (IF($A$5,((Q9/1000*N9)+(Q8/1000*N8)),((S9/1000*N9)+(S8/1000*N8)))), 0) -> 0 | N9: 10 | O9: g | P9: =(6.4+16.9)/2 -> 11.65 | Q9: =(17.5+33)/2 -> 25.25 | R9: 10.88785047 | S9: 23.59813084 | T9: €/kg | U9: 7 | W9: =(6.4+16.9)/2 -> 11.65 | X9: =(17.5+33)/2 -> 25.25
D10: FALSE | F10: FALSE | I10: FALSE | R10: 0 | S10: 0
C11: Hafermilch | D11: FALSE | E11: =IF(D11, (IF($A$5,P11/1000*N11,R11/1000*N11)), 0) -> 0 | F11: FALSE | G11: =IF(F11, (IF($A$5,Q11/1000*N11,S11/1000*N11)), 0) -> 0 | I11: FALSE | J11: =IF(I11, (IF($A$5,P11/1000*N11,R11/1000*N11)), 0) -> 0 | K11: FALSE | L11: =IF(K11, (IF($A$5,Q11/1000*N11,S11/1000*N11)), 0) -> 0 | N11: 250 | O11: ml | P11: =(0.95+1.19)/2 -> 1.07 | Q11: =(0.99+1.41)/2 -> 1.2 | R11: 0.8991596639 | S11: 1.008403361 | T11: €/l | U11: 19 | W11: =(0.95+1.19)/2 -> 1.07 | X11: =(0.99+1.41)/2 -> 1.2
C12: Sojamilch | D12: FALSE | E12: 0 | F12: FALSE | G12: 0 | I12: FALSE | J12: 0 | K12: FALSE | L12: 0 | N12: 250 | O12: ml | P12: =(0.92+1.69)/2 -> 1.305 | Q12: =(0.95+1.89)/2 -> 1.42 | R12: 1.096638655 | S12: 1.193277311 | T12: €/l | U12: 19 | W12: =(0.92+1.69)/2 -> 1.305 | X12: =(0.95+1.89)/2 -> 1.42
C13: Sekt | D13: FALSE | E13: 0 | F13: FALSE | G13: 0 | I13: FALSE | J13: 0 | K13: FALSE | L13: 0 | N13: 100 | O13: ml | P13: =(4.52+12.24)/2 -> 8.38 | Q13: =(9.32+14.4)/2 -> 11.86 | R13: 7.042016807 | S13: 9.966386555 | T13: €/l | U13: 19 | W13: =(4.52+12.24)/2 -> 8.38 | X13: =(9.32+14.4)/2 -> 11.86
C14: Multivitaminsaft | D14: FALSE | E14: 0 | F14: FALSE | G14: 0 | I14: FALSE | J14: 0 | K14: FALSE | L14: 0 | N14: 250 | O14: ml | P14: =(0.89+1.62)/2 -> 1.255 | Q14: =(1.84+5.64)/2 -> 3.74 | R14: 1.054621849 | S14: =Q14/(1+(U14/100)) -> 3.142857143 | T14: €/l | U14: 19 | W14: =(0.89+1.62)/2 -> 1.255 | X14: =(1.84+5.64)/2 -> 3.74
C15: Orangensaft | D15: TRUE | E15: 0.38875 | F15: FALSE | G15: 0 | I15: TRUE | J15: 0.38875 | K15: FALSE | L15: 0 | N15: 250 | O15: ml | P15: =(0.95+2.16)/2 -> 1.555 | Q15: =(1.79+5.98)/2 -> 3.885 | R15: 1.306722689 | S15: =Q15/(1+(U15/100)) -> 3.264705882 | T15: €/l | U15: 19 | W15: =(0.95+2.16)/2 -> 1.555 | X15: =(1.79+5.98)/2 -> 3.885
C16: Apfelsaft | D16: FALSE | E16: 0 | F16: FALSE | G16: 0 | I16: FALSE | J16: 0 | K16: FALSE | L16: 0 | N16: 250 | O16: ml | P16: =(0.59+1.74)/2 -> 1.165 | Q16: =(1.49+2.38)/2 -> 1.935 | R16: 0.9789915966 | S16: 1.62605042 | T16: €/l | U16: 19 | W16: =(0.59+1.74)/2 -> 1.165 | X16: =(1.49+2.38)/2 -> 1.935
C18: Semmel | D18: FALSE | E18: =IF(D18, (IF($A$5,P18*N18,R18*N18)), 0) -> 0 | F18: FALSE | G18: =IF(F18, (IF($A$5,Q18*N18,S18*N18)), 0) -> 0 | I18: FALSE | J18: =IF(I18, (IF($A$5,P18*N18,R18*N18)), 0) -> 0 | K18: FALSE | L18: =IF(K18, (IF($A$5,Q18*N18,S18*N18)), 0) -> 0 | N18: 1 | O18: Stk. | P18: =(0.15+0.35)/2 -> 0.25 | Q18: =(0.35+0.48)/2 -> 0.415 | R18: 0.2336448598 | S18: 0.3878504673 | T18: €/Stk. | U18: 7 | W18: =(0.15+0.35)/2 -> 0.25 | X18: =(0.35+0.48)/2 -> 0.415
C19: Vollkornbrötchen | D19: TRUE | E19: =IF(D19, (IF($A$5,P19*N19,R19*N19)), 0) -> 0.465 | F19: FALSE | G19: =IF(F19, (IF($A$5,Q19*N19,S19*N19)), 0) -> 0 | I19: FALSE | J19: =IF(I19, (IF($A$5,P19*N19,R19*N19)), 0) -> 0 | K19: FALSE | L19: =IF(K19, (IF($A$5,Q19*N19,S19*N19)), 0) -> 0 | N19: 1 | O19: Stk. | P19: =(0.33+0.6)/2 -> 0.465 | Q19: =(0.75+0.8)/2 -> 0.775 | R19: 0.4345794393 | S19: 0.7242990654 | T19: €/Stk. | U19: 7 | W19: =(0.33+0.6)/2 -> 0.465 | X19: =(0.75+0.8)/2 -> 0.775
C20: Breze | D20: FALSE | E20: =IF(D20, (IF($A$5,P20*N20,R20*N20)), 0) -> 0 | F20: FALSE | G20: =IF(F20, (IF($A$5,Q20*N20,S20*N20)), 0) -> 0 | I20: TRUE | J20: =IF(I20, (IF($A$5,P20*N20,R20*N20)), 0) -> 0.495 | K20: FALSE | L20: =IF(K20, (IF($A$5,Q20*N20,S20*N20)), 0) -> 0 | N20: 1 | O20: Stk. | P20: =(0.29+0.7)/2 -> 0.495 | Q20: =(0.89+0.99)/2 -> 0.94 | R20: 0.4626168224 | S20: 0.8785046729 | T20: €/Stk. | U20: 7 | W20: =(0.29+0.7)/2 -> 0.495 | X20: =(0.89+0.99)/2 -> 0.94
C21: Croissant | D21: TRUE | E21: =IF(D21, (IF($A$5,P21*N21,R21*N21)), 0) -> 0.625 | F21: FALSE | G21: =IF(F21, (IF($A$5,Q21*N21,S21*N21)), 0) -> 0 | I21: FALSE | J21: =IF(I21, (IF($A$5,P21*N21,R21*N21)), 0) -> 0 | K21: FALSE | L21: =IF(K21, (IF($A$5,Q21*N21,S21*N21)), 0) -> 0 | N21: 1 | O21: Stk. | P21: =(0.55+0.7)/2 -> 0.625 | Q21: =(0.8+1.4)/2 -> 1.1 | R21: 0.5841121495 | S21: 1.028037383 | T21: €/Stk. | U21: 7 | W21: =(0.55+0.7)/2 -> 0.625 | X21: =(0.8+1.4)/2 -> 1.1
C22: Mischbrot | D22: FALSE | E22: =IF(D22, (IF($A$5,P22/1000*N22,R22/1000*N22)), 0) -> 0 | F22: FALSE | G22: =IF(F22, (IF($A$5,Q22/1000*N22,S22/1000*N22)), 0) -> 0 | I22: FALSE | J22: =IF(I22, (IF($A$5,P23/1000*N22,R22/1000*N22)), 0) -> 0 | K22: FALSE | L22: =IF(K22, (IF($A$5,Q22/1000*N22,S22/1000*N22)), 0) -> 0 | N22: 60 | O22: g | P22: =(2.6+2.9)/2 -> 2.75 | Q22: =(4.93+6.3)/2 -> 5.615 | R22: 2.570093458 | S22: =Q22/(1+(U22/100)) -> 5.247663551 | T22: €/kg | U22: 7 | W22: =(2.6+2.9)/2 -> 2.75 | X22: =(4.93+6.3)/2 -> 5.615
C23: Vollkornbrot | D23: FALSE | E23: =IF(D23, (IF($A$5,P23/1000*N23,R23/1000*N23)), 0) -> 0 | F23: FALSE | G23: 0 | I23: FALSE | J23: =IF(I23, (IF($A$5,P23/1000*N23,R23/1000*N23)), 0) -> 0 | K23: FALSE | L23: 0 | N23: 60 | O23: g | P23: =(1.78+4)/2 -> 2.89 | Q23: =(4.95+6.9)/2 -> 5.925 | R23: 2.700934579 | S23: 5.537383178 | T23: €/kg | U23: 7 | W23: =(1.78+4)/2 -> 2.89 | X23: =(4.95+6.9)/2 -> 5.925
C24: Butter | D24: TRUE | E24: =IF(D24, (IF($A$5,P24/1000*N24,R24/1000*N24)), 0) -> 0.162 | F24: FALSE | G24: =IF(F24, (IF($A$5,Q24/1000*N24,S24/1000*N24)), 0) -> 0 | I24: TRUE | J24: =IF(I24, (IF($A$5,P24/1000*N24,R24/1000*N24)), 0) -> 0.162 | K24: FALSE | L24: =IF(K24, (IF($A$5,Q24/1000*N24,S24/1000*N24)), 0) -> 0 | N24: 20 | O24: g | P24: =(5.4+10.8)/2 -> 8.1 | Q24: =(8.8+11.56)/2 -> 10.18 | R24: =P24/(1+(U24/100)) -> 7.570093458 | S24: 9.514018692 | T24: €/kg | U24: 7 | W24: =(5.4+10.8)/2 -> 8.1 | X24: =(8.8+11.56)/2 -> 10.18
C25: Fruchtaufstrich | D25: TRUE | E25: 0.2838 | F25: FALSE | G25: 0 | I25: FALSE | J25: 0 | K25: FALSE | L25: 0 | N25: 30 | O25: g | P25: =(3.09+15.83)/2 -> 9.46 | Q25: =(11.16+29.4)/2 -> 20.28 | R25: 8.841121495 | S25: 18.95327103 | T25: €/kg | U25: 7 | W25: =(3.09+15.83)/2 -> 9.46 | X25: =(11.16+29.4)/2 -> 20.28
C26: Honig | D26: FALSE | E26: 0 | F26: FALSE | G26: 0 | I26: FALSE | J26: 0 | K26: FALSE | L26: 0 | N26: 30 | O26: g | P26: =(6.5+16.98)/2 -> 11.74 | Q26: =(7.29+23.64)/2 -> 15.465 | R26: 10.97196262 | S26: 14.45327103 | T26: €/kg | U26: 7 | W26: =(6.5+16.98)/2 -> 11.74 | X26: =(7.29+23.64)/2 -> 15.465
C27: Nuss-Schokocreme | D27: FALSE | E27: 0 | F27: FALSE | G27: 0 | I27: TRUE | J27: 0.2712 | K27: FALSE | L27: 0 | N27: 40 | O27: g | P27: =(6.6+6.96)/2 -> 6.78 | Q27: =(7.47+15.2)/2 -> 11.335 | R27: 6.336448598 | S27: 10.59345794 | T27: €/kg | U27: 7 | W27: =(6.6+6.96)/2 -> 6.78 | X27: =(7.47+15.2)/2 -> 11.335
C28: Frischkäse | D28: FALSE | E28: 0 | F28: FALSE | G28: 0 | I28: FALSE | J28: 0 | K28: FALSE | L28: 0 | N28: 30 | O28: g | P28: =(3.2+6.6)/2 -> 4.9 | Q28: =(5.3+7.3)/2 -> 6.3 | R28: 4.579439252 | S28: 5.887850467 | T28: €/kg | U28: 7 | W28: =(3.2+6.6)/2 -> 4.9 | X28: =(5.3+7.3)/2 -> 6.3
C29: Weichkäse | D29: FALSE | E29: 0 | F29: FALSE | G29: 0 | I29: FALSE | J29: 0 | K29: FALSE | L29: 0 | N29: 30 | O29: g | P29: =(8.9+11.9)/2 -> 10.4 | Q29: =(13.3+22.3)/2 -> 17.8 | R29: 9.719626168 | S29: 16.63551402 | T29: €/kg | U29: 7 | W29: =(8.9+11.9)/2 -> 10.4 | X29: =(13.3+22.3)/2 -> 17.8
C30: Schnittkäse | D30: TRUE | E30: 0.44375 | F30: FALSE | G30: 0 | I30: FALSE | J30: 0 | K30: FALSE | L30: 0 | N30: 50 | O30: g | P30: =(6.63+11.12)/2 -> 8.875 | Q30: =(10.6+18.6)/2 -> 14.6 | R30: 8.294392523 | S30: 13.64485981 | T30: €/kg | U30: 7 | W30: =(6.63+11.12)/2 -> 8.875 | X30: =(10.6+18.6)/2 -> 14.6
C31: Schinken | D31: TRUE | E31: 0.72875 | F31: FALSE | G31: 0 | I31: FALSE | J31: 0 | K31: FALSE | L31: 0 | N31: 50 | O31: g | P31: =(9.3+19.85)/2 -> 14.575 | Q31: =(31.13+45.9)/2 -> 38.515 | R31: 13.62149533 | S31: 35.9953271 | T31: €/kg | U31: 7 | W31: =(9.3+19.85)/2 -> 14.575 | X31: =(31.13+45.9)/2 -> 38.515
C32: Joghurt natur | D32: FALSE | E32: 0 | F32: FALSE | G32: 0 | I32: FALSE | J32: 0 | K32: FALSE | L32: 0 | N32: 120 | O32: g | P32: =(2+3.48)/2 -> 2.74 | Q32: =(2.3+3.58)/2 -> 2.94 | R32: 2.560747664 | S32: 2.747663551 | T32: €/kg | U32: 7 | W32: =(2+3.48)/2 -> 2.74 | X32: =(2.3+3.58)/2 -> 2.94
C33: Joghurt Frucht | D33: FALSE | E33: 0 | F33: TRUE | G33: 0.3948 | I33: FALSE | J33: 0 | K33: TRUE | L33: 0.3948 | N33: 120 | O33: g | P33: =(1.9+2.6)/2 -> 2.25 | Q33: =(2.6+3.98)/2 -> 3.29 | R33: 2.102803738 | S33: 3.074766355 | T33: €/kg | U33: 7 | W33: =(1.9+2.6)/2 -> 2.25 | X33: =(2.6+3.98)/2 -> 3.29
C35: Knuspermüsli | D35: FALSE | E35: =IF(D35, (IF($A$5,P35/1000*N35,R35/1000*N35)), 0) -> 0 | F35: FALSE | G35: =IF(F35, (IF($A$5,Q35/1000*N35,S35/1000*N35)), 0) -> 0 | I35: FALSE | J35: =IF(I35, (IF($A$5,P35/1000*N35,R35/1000*N35)), 0) -> 0 | K35: FALSE | L35: =IF(K35, (IF($A$5,Q35/1000*N35,S35/1000*N35)), 0) -> 0 | N35: 40 | O35: g | P35: =(2.98+6.65)/2 -> 4.815 | Q35: =(4.98+11.58)/2 -> 8.28 | R35: =P35/(1+(U35/100)) -> 4.5 | S35: =Q35/(1+(U35/100)) -> 7.738317757 | T35: €/kg | U35: 7 | W35: =(2.98+6.65)/2 -> 4.815 | X35: =(4.98+11.58)/2 -> 8.28
C36: Haferflocken | D36: FALSE | E36: =IF(D36, (IF($A$5,P36/1000*N36,R36/1000*N36)), 0) -> 0 | F36: FALSE | G36: =IF(F36, (IF($A$5,Q36/1000*N36,S36/1000*N36)), 0) -> 0 | I36: FALSE | J36: =IF(I36, (IF($A$5,P36/1000*N36,R36/1000*N36)), 0) -> 0 | K36: FALSE | L36: =IF(K36, (IF($A$5,Q36/1000*N36,S36/1000*N36)), 0) -> 0 | N36: 30 | O36: g | P36: =(0.98+2.58)/2 -> 1.78 | Q36: =(2.38+6.4)/2 -> 4.39 | R36: =P36/(1+(U36/100)) -> 1.663551402 | S36: =Q36/(1+(U36/100)) -> 4.102803738 | T36: €/kg | U36: 7 | W36: =(0.98+2.58)/2 -> 1.78 | X36: =(2.38+6.4)/2 -> 4.39
C37: Leinsamen | D37: FALSE | E37: =IF(D37, (IF($A$5,P37/1000*N37,R37/1000*N37)), 0) -> 0 | F37: FALSE | G37: =IF(F37, (IF($A$5,Q37/1000*N37,S37/1000*N37)), 0) -> 0 | I37: FALSE | J37: =IF(I37, (IF($A$5,P37/1000*N37,R37/1000*N37)), 0) -> 0 | K37: FALSE | L37: =IF(K37, (IF($A$5,Q37/1000*N37,S37/1000*N37)), 0) -> 0 | N37: 15 | O37: g | P37: =(4+5.95)/2 -> 4.975 | Q37: =(6.39+19.3)/2 -> 12.845 | R37: =P37/(1+(U37/100)) -> 4.64953271 | S37: =Q37/(1+(U37/100)) -> 12.0046729 | T37: €/kg | U37: 7 | W37: =(4+5.95)/2 -> 4.975 | X37: =(6.39+19.3)/2 -> 12.845
C38: Milch für Müsli | D38: FALSE | E38: =IF(D38, (IF($A$5,P38/1000*N38,R38/1000*N38)), 0) -> 0 | F38: FALSE | G38: =IF(F38, (IF($A$5,Q38/1000*N38,S38/1000*N38)), 0) -> 0 | I38: FALSE | J38: =IF(I38, (IF($A$5,P38/1000*N38,R38/1000*N38)), 0) -> 0 | K38: FALSE | L38: =IF(K38, (IF($A$5,Q38/1000*N38,S38/1000*N38)), 0) -> 0 | N38: 200 | O38: ml | P38: =(0.79+1.19)/2 -> 0.99 | Q38: =(0.99+2.42)/2 -> 1.705 | R38: =P38/(1+(U38/100)) -> 0.9252336449 | S38: =Q38/(1+(U38/100)) -> 1.593457944 | T38: €/l | U38: 7 | W38: =(0.79+1.19)/2 -> 0.99 | X38: =(0.99+2.42)/2 -> 1.705
C40: Chia-Pudding mit Obst, Nüssen | D40: FALSE | E40: =IF(D40, (IF($A$5,P40*N40,R40*N40)), 0) -> 0 | F40: FALSE | G40: =IF(F40, (IF($A$5,Q40*N40,S40*N40)), 0) -> 0 | I40: FALSE | J40: =IF(I40, (IF($A$5,P40*N40,R40*N40)), 0) -> 0 | K40: FALSE | L40: =IF(K40, (IF($A$5,Q40*N40,S40*N40)), 0) -> 0 | N40: 1 | O40: Stk. | P40: =(1.34+2.03)/2 -> 1.685 | Q40: =(2.01+2.3)/2 -> 2.155 | R40: =P40/(1+(U40/100)) -> 1.574766355 | S40: =Q40/(1+(U40/100)) -> 2.014018692 | T40: €/Port | U40: 7 | W40: =(1.34+2.03)/2 -> 1.685 | X40: =(2.01+2.3)/2 -> 2.155
C41: Porridge | D41: FALSE | E41: =IF(D41, (IF($A$5,P41*N41,R41*N41)), 0) -> 0 | F41: FALSE | G41: =IF(F41, (IF($A$5,Q41*N41,S41*N41)), 0) -> 0 | I41: FALSE | J41: =IF(I41, (IF($A$5,P41*N41,R41*N41)), 0) -> 0 | K41: FALSE | L41: =IF(K41, (IF($A$5,Q41*N41,S41*N41)), 0) -> 0 | N41: 1 | O41: Stk. | P41: =(1.33+1.61)/2 -> 1.47 | Q41: =(1.78+2.39)/2 -> 2.085 | R41: =P41/(1+(U41/100)) -> 1.373831776 | S41: =Q41/(1+(U41/100)) -> 1.948598131 | T41: €/Port | U41: 7 | W41: =(1.33+1.61)/2 -> 1.47 | X41: =(1.78+2.39)/2 -> 2.085
C42: Bircher-Müsli | D42: FALSE | E42: =IF(D42, (IF($A$5,P42*N42,R42*N42)), 0) -> 0 | F42: FALSE | G42: =IF(F42, (IF($A$5,Q42*N42,S42*N42)), 0) -> 0 | I42: FALSE | J42: =IF(I42, (IF($A$5,P42*N42,R42*N42)), 0) -> 0 | K42: FALSE | L42: =IF(K42, (IF($A$5,Q42*N42,S42*N42)), 0) -> 0 | N42: 1 | O42: Stk. | P42: =(0.98+1.36)/2 -> 1.17 | Q42: =(1.39+2.07)/2 -> 1.73 | R42: =P42/(1+(U42/100)) -> 1.093457944 | S42: =Q42/(1+(U42/100)) -> 1.61682243 | T42: €/Port | U42: 7 | W42: =(0.98+1.36)/2 -> 1.17 | X42: =(1.39+2.07)/2 -> 1.73
C43: Overnight-Oat | D43: FALSE | E43: =IF(D43, (IF($A$5,P43*N43,R43*N43)), 0) -> 0 | F43: FALSE | G43: =IF(F43, (IF($A$5,Q43*N43,S43*N43)), 0) -> 0 | I43: FALSE | J43: =IF(I43, (IF($A$5,P43*N43,R43*N43)), 0) -> 0 | K43: FALSE | L43: =IF(K43, (IF($A$5,Q43*N43,S43*N43)), 0) -> 0 | N43: 1 | O43: Stk. | P43: =(0.96+1.2)/2 -> 1.08 | Q43: =(1.39+1.89)/2 -> 1.64 | R43: =P43/(1+(U43/100)) -> 1.009345794 | S43: =Q43/(1+(U43/100)) -> 1.53271028 | T43: €/Port | U43: 7 | W43: =(0.96+1.2)/2 -> 1.08 | X43: =(1.39+1.89)/2 -> 1.64
C44: Smoothie aus Heidelb., Banane, Apfel | D44: FALSE | E44: =IF(D44, (IF($A$5,P44*N44,R44*N44)), 0) -> 0 | F44: FALSE | G44: =IF(F44, (IF($A$5,Q44*N44,S44*N44)), 0) -> 0 | I44: FALSE | J44: =IF(I44, (IF($A$5,P44*N44,R44*N44)), 0) -> 0 | K44: FALSE | L44: =IF(K44, (IF($A$5,Q44*N44,S44*N44)), 0) -> 0 | N44: 1 | O44: Stk. | P44: =(1.14+1.39)/2 -> 1.265 | Q44: =(1.57+1.69)/2 -> 1.63 | R44: =P44/(1+(U44/100)) -> 1.182242991 | S44: =Q44/(1+(U44/100)) -> 1.523364486 | T44: €/Port | U44: 7 | W44: =(1.14+1.39)/2 -> 1.265 | X44: =(1.57+1.69)/2 -> 1.63
C46: Apfel | D46: FALSE | E46: =IF(D46, (IF($A$5,P46*N46,R46*N46)), 0) -> 0 | F46: FALSE | G46: =IF(F46, (IF($A$5,Q46*N46,S46*N46)), 0) -> 0 | I46: FALSE | J46: =IF(I46, (IF($A$5,P46*N46,R46*N46)), 0) -> 0 | K46: FALSE | L46: =IF(K46, (IF($A$5,Q46*N46,S46*N46)), 0) -> 0 | N46: 1 | O46: Stk. | P46: =(0.12+0.37)/2 -> 0.245 | Q46: =(0.37+0.67)/2 -> 0.52 | R46: =P46/(1+(U46/100)) -> 0.2289719626 | S46: =Q46/(1+(U46/100)) -> 0.4859813084 | T46: €/Port | U46: 7 | W46: =(0.12+0.37)/2 -> 0.245 | X46: =(0.37+0.67)/2 -> 0.52
C47: Banane | D47: FALSE | E47: =IF(D47, (IF($A$5,P47*N47,R47*N47)), 0) -> 0 | F47: FALSE | G47: =IF(F47, (IF($A$5,Q47*N47,S47*N47)), 0) -> 0 | I47: FALSE | J47: =IF(I47, (IF($A$5,P47*N47,R47*N47)), 0) -> 0 | K47: TRUE | L47: =IF(K47, (IF($A$5,Q47*N47,S47*N47)), 0) -> 0.335 | N47: 1 | O47: Stk. | P47: =(0.15+0.3)/2 -> 0.225 | Q47: =(0.22+0.45)/2 -> 0.335 | R47: =P47/(1+(U47/100)) -> 0.2102803738 | S47: =Q47/(1+(U47/100)) -> 0.3130841121 | T47: €/Port | U47: 7 | W47: =(0.15+0.3)/2 -> 0.225 | X47: =(0.22+0.45)/2 -> 0.335
C49: gekochtes Ei | D49: FALSE | E49: =IF(D49, (IF($A$5,P49*N49,R49*N49)), 0) -> 0 | F49: TRUE | G49: =IF(F49, (IF($A$5,Q49*N49,S49*N49)), 0) -> 0.81 | I49: FALSE | J49: =IF(I49, (IF($A$5,P49*N49,R49*N49)), 0) -> 0 | K49: FALSE | L49: =IF(K49, (IF($A$5,Q49*N49,S49*N49)), 0) -> 0 | N49: 1 | O49: Stk. | P49: =(0.55+0.63)/2 -> 0.59 | Q49: =(0.64+0.98)/2 -> 0.81 | R49: =P49/(1+(U49/100)) -> 0.5514018692 | S49: =Q49/(1+(U49/100)) -> 0.7570093458 | T49: €/Port | U49: 7 | W49: =(0.55+0.63)/2 -> 0.59 | X49: =(0.64+0.98)/2 -> 0.81
C50: Rührei | D50: FALSE | E50: =IF(D50, (IF($A$5,P50*N50,R50*N50)), 0) -> 0 | F50: FALSE | G50: =IF(F50, (IF($A$5,Q50*N50,S50*N50)), 0) -> 0 | I50: FALSE | J50: =IF(I50, (IF($A$5,P50*N50,R50*N50)), 0) -> 0 | K50: FALSE | L50: =IF(K50, (IF($A$5,Q50*N50,S50*N50)), 0) -> 0 | N50: 1 | O50: Stk. | P50: =(1.13+1.33)/2 -> 1.23 | Q50: =(1.31+2.08)/2 -> 1.695 | R50: =P50/(1+(U50/100)) -> 1.14953271 | S50: =Q50/(1+(U50/100)) -> 1.58411215 | T50: €/Port | U50: 7 | W50: =(1.13+1.33)/2 -> 1.23 | X50: =(1.31+2.08)/2 -> 1.695
C51: Spiegelei | D51: FALSE | E51: =IF(D51, (IF($A$5,P51*N51,R51*N51)), 0) -> 0 | F51: FALSE | G51: =IF(F51, (IF($A$5,Q51*N51,S51*N51)), 0) -> 0 | I51: FALSE | J51: =IF(I51, (IF($A$5,P51*N51,R51*N51)), 0) -> 0 | K51: FALSE | L51: =IF(K51, (IF($A$5,Q51*N51,S51*N51)), 0) -> 0 | N51: 1 | O51: Stk. | P51: =(0.72+0.86)/2 -> 0.79 | Q51: =(0.85+1.21)/2 -> 1.03 | R51: =P51/(1+(U51/100)) -> 0.738317757 | S51: =Q51/(1+(U51/100)) -> 0.9626168224 | T51: €/Port | U51: 7 | W51: =(0.72+0.86)/2 -> 0.79 | X51: =(0.85+1.21)/2 -> 1.03
D53: FALSE | E53: =IF(D53, (IF($A$5,P53*N53,R53*N53)), 0) -> 0 | G53: =IF(F53, (IF($A$5,Q53*N53,S53*N53)), 0) -> 0 | J53: =IF(I53, (IF($A$5,P53*N53,R53*N53)), 0) -> 0 | L53: =IF(K53, (IF($A$5,Q53*N53,S53*N53)), 0) -> 0 | O53: Stk. | R53: =P53/(1+(U53/100)) -> 0 | S53: =Q53/(1+(U53/100)) -> 0 | T53: €/Port
E54: =IF(D54, (IF($A$5,P54*N54,R54*N54)), 0) -> 0 | G54: 0 | J54: 0 | L54: 0 | O54: Stk. | R54: 0 | S54: 0 | T54: €/Port
E55: 0 | G55: 0 | J55: 0 | L55: 0 | O55: g | R55: 0 | S55: 0 | T55: €/kg
D56: FALSE | E56: 0 | F56: FALSE | G56: 0 | J56: 0 | L56: 0 | O56: g | R56: 0 | S56: 0 | T56: €/kg
R57: =P57/(1+(U57/100)) -> 0 | S57: 0
D58: Wareneinsatz Frühstück Erwachsene | G58: =SUM(E4:E57)+SUM(G4:G56) -> 4.64475 | I58: Wareneinsatz Frühstück Kinder | L58: =SUM(J4:J56)+SUM(L4:L56) -> 2.41075
A68: Bayerische Landesanstalt für Landwirtschaft, Institut für Betriebswirtschaft und Agrarstruktur, Dezember 2021

Sheet Preiskalkulation (hidden)
A1: Diese einfache Art der Preiskalkulation, die sogenannte Zuschlagskalkulation, wird häufig in der Gastronomie zur überschlagsmäßigen Kalkulation des Verkaufspreises verwendet! (siehe Kompendium zur Meisterausbildung Hauswirtschaft) Dabei ist zu beachten, dass höhere Kosten beim Wareneinsatz (Beispiel Öko-Lebensmittel) zu überproportionalen Aufschlägen und somit zu einem zu hohen Verkaufspreis führen können.
A6: Eingabefelder
A8: Bruttorechner | C8: Frühstück Erwachsene | E8: Frühstück Kinder
A9: TRUE
B11: Wareneinsatz | C11: ='1) Wareneinsatz'!G58 -> 4.64475 | E11: ='1) Wareneinsatz'!L58 -> 2.41075
A13: + | B13: Gemeinkostenaufschlag | C13: 1.2 | E13: 1.2
A15: = | B15: Selbstkosten | C15: =C11+(C11*C13) -> 10.21845 | E15: =E11+(E11*E13) -> 5.30365
A17: + | B17: Gewinnaufschlag | C17: 0.2 | E17: 0.2
A19: = | B19: kalkulierter Preis | C19: =C15+(C15*C17) -> 12.26214 | E19: =E15+(E15*E17) -> 6.36438
A21: + | B21: Serviceaufschlag | C21: 0.15 | E21: 0.15
A23: = | B23: Zwischensumme | C23: =C19+(C19*C21) -> 14.101461 | E23: =E19+(E19*E21) -> 7.319037
B24: =IF('1) Wareneinsatz'!A5, "", "USt. 19 %") ->  | C24: =IF('1) Wareneinsatz'!A5, 0, 0.19) -> 0
A25: = | B25: Verkaufspreis brutto | C25: =C23+(C23*C24) -> 14.101461 | E25: =E23+(E23*D24) -> 7.319037
B27: auszuweisender Netto Verkaufspreis | C27: =IF('1) Wareneinsatz'!A5, (Preiskalkulation!C25/1.19), C23) -> 11.84996723 | E27: =IF('1) Wareneinsatz'!A5, (Preiskalkulation!E25/1.19), E23) -> 6.150451261
B28: auszuweisende USt. 19 % | C28: =IF('1) Wareneinsatz'!A5, (Preiskalkulation!C27*0.19), C27*0.19) -> 2.251493773 | E28: =IF('1) Wareneinsatz'!A5, (Preiskalkulation!E27*0.19), E27*0.19) -> 1.168585739
A35: Bayerische Landesanstalt für Landwirtschaft, Institut für Betriebswirtschaft und Agrarstruktur, März 2021

Sheet 2) Angaben DB
A1: Eingabefelder
A3: ='1) Wareneinsatz'!A4 -> Bruttorechner
A4: ='1) Wareneinsatz'!A4 -> Bruttorechner
A6: Allgemeine Angaben zu Belegung und Übernachtungen
A7: Kategorie der Ferienwohnungen (FWG) | B7: Anzahl FWG | C7: Belegtage je FWG u. Jahr | D7: durchschn. Belegung Personen /FWG | E7: Übernachtungen /Jahr
A9: klein (bis 2 Pers.) | B9: 1 | C9: 174 | D9: 2 | E9: =B9*C9*D9 -> 348
A10: mittel (bis 4 Pers.) | B10: 2 | C10: 174 | D10: 3 | E10: =B10*C10*D10 -> 1044
A11: gross (bis 6 Pers.) | B11: 1 | C11: 174 | D11: 5 | E11: 870
A12: Summe | B12: =SUM(B9:B11) -> 4 | C12: =B9*C9+B10*C10+B11*C11 -> 696 | E12: =SUM(E9:E11) -> 2262
A13: Durchschnitt | C13: =((B9*C9)+(B10*C10)+(B11*C11))/B12 -> 174 | D13: =(D9+D10+D10+D11)/B12 -> 3.25
A15: Allgemeine Angaben zum Frühstücksangebot
A17: Anteil Gäste mit Verpflegung | B17: 0.5 | D17: =E12*B17 -> 1131 | E17: Frühstücksportionen/Jahr
B19: Brutto-Verkaufspreis €/Portion | C19: Anteil Erwachsene/Kinder | D19: Frühstücks- portionen/Jahr | E19: Mischpreis Erwachsene/Kinder
A20: Erwachsene | B20: 15 | C20: 0.6 | D20: =D17*C20 -> 678.6 | E20: =(B20*C20)+(B21*C21) -> 13
A21: Kinder (bis 10 Jahre) | B21: 10 | C21: =1-C20 -> 0.4 | D21: =D17*C21 -> 452.4
A23: Arbeitszeitbedarf | B23: Info: Arbeitsbewertung (€/Akh) im Tabellenblatt 5) hinterlegt!
A24: Gesamtarbeitszeitbedarf | B24: =D24/52 -> 7.326608974 | C24: h/Woche | D24: ='5) Ergebnis DB ausführlich'!C80 -> 380.9836667 | E24: Akh/Jahr
A25: davon Aushilfskräfte | B25: 0 | C25: h/Woche | D25: =B25*52 -> 0 | E25: Akh/Jahr
A26: davon Festangestellte | B26: 0 | C26: h/Woche | D26: =B26*52 -> 0 | E26: Akh/Jahr
A27: verbleibt für Familien-Arbeitskräfte | B27: =B24-B25-B26 -> 7.326608974 | C27: h/Woche | D27: =B27*52 -> 380.9836667 | E27: Akh/Jahr
A29: Investitionsbedarf | D29: Ausstattung? | E29: Neubau?
A30: Küche | B30: 20 | C30: m² | D30: TRUE | E30: FALSE
A31: Speiseraum | B31: 40 | C31: m² | D31: TRUE | E31: FALSE
A33: Welche Anforderungen eine Küche, in der Lebensmittel verarbeitet und zum Verzehr angeboten werden, erfüllen muss finden Sie unter: http://www.onlinehilfe-lebensmittelhygiene.de/gastronomie/
A42: Bayerische Landesanstalt für Landwirtschaft, Institut für Betriebswirtschaft und Agrarstruktur, Dezember 2021

Sheet 3) Ergebnis DB kurz
B1: Die Werte im folgenden Berechnungsschema "Ergebnis DB kurz" ergeben sich aus den Berechnungen in "5) Ergebnis DB ausführlich"!
B3: Durchschnittserlös aus Frühstücksangebot | D3: ='5) Ergebnis DB ausführlich'!E27 -> 14703 | E3: /Betrieb u. Jahr | G3: =D3/'2) Angaben DB'!D17 -> 13 | H3: /Frühstück
A4: - | B4: variable Kosten inkl. Personalkosten Aushilfskräfte | D4: ='5) Ergebnis DB ausführlich'!E35+'5) Ergebnis DB ausführlich'!E56+'5) Ergebnis DB ausführlich'!E66+'5) Ergebnis DB ausführlich'!E85+'5) Ergebnis DB ausführlich'!E90 -> 5955.30865 | E4: /Betrieb u. Jahr | G4: =D4/'2) Angaben DB'!D17 -> 5.265524889 | H4: /Frühstück
A6: = | B6: DECKUNGSBEITRAG für das Frühstücksangebot | D6: ='5) Ergebnis DB ausführlich'!E94 -> 8747.69135 | E6: /Betrieb u. Jahr | G6: =G3-G4 -> 7.734475111 | H6: /Frühstück
B8: Kapitalkosten Investition | D8: ='5) Ergebnis DB ausführlich'!J107+'5) Ergebnis DB ausführlich'!J116+'5) Ergebnis DB ausführlich'!J117 -> 2879.2809 | E8: /Betrieb u. Jahr | G8: =D8/'2) Angaben DB'!D17 -> 2.545783289 | H8: /Frühstück
B9: Personalkosten Arbeiten festangestellte AK | D9: ='5) Ergebnis DB ausführlich'!J126 -> 0 | E9: /Betrieb u. Jahr | G9: =D9/'2) Angaben DB'!D17 -> 0 | H9: /Frühstück
B10: Sonstige Festkosten | D10: ='5) Ergebnis DB ausführlich'!J138 -> 545.428 | E10: /Betrieb u. Jahr | G10: =D10/'2) Angaben DB'!D17 -> 0.4822528736 | H10: /Frühstück
A12: = | B12: Gewinnbeitrag | D12: =D6-D8-D9-D10 -> 5322.98245 | E12: /Betrieb u. Jahr | G12: =G6-G8-G9-G10 -> 4.706438948 | H12: /Frühstück
B14: Kalkulatorische Faktorkosten
B15: Zinsansatz eigenfinanzierte Investitionssumme | D15: ='5) Ergebnis DB ausführlich'!J150 -> 101.0274 | E15: / Betrieb u. Jahr | G15: =D15/'2) Angaben DB'!D17 -> 0.08932572944 | H15: /Frühstück
B16: Lohnansatz nicht entlohnte AK | D16: ='5) Ergebnis DB ausführlich'!J155 -> 7429.1815 | E16: / Betrieb u. Jahr | G16: =D16/'2) Angaben DB'!D17 -> 6.568683908 | H16: /Frühstück
B17: Zinsansatz Umlaufkapital | D17: 0 | E17: / Betrieb u. Jahr | G17: =D17/'2) Angaben DB'!D17 -> 0 | H17: /Frühstück
B19: Unternehmergewinn | D19: =D12-D15-D16-D17 -> -2207.22645 | E19: / Betrieb u. Jahr | G19: =G12-G15-G16-G17 -> -1.95157069 | H19: /Frühstück
B20: = Gewinnbeitrag - kalkulatorische Faktorkosten
B22: Arbeitsertrag je nicht entlohnter Akh | D22: ='5) Ergebnis DB ausführlich'!J163 -> -5.793493641 | E22: / Akh | G22: =D22/'2) Angaben DB'!D17 -> -0.005122452379 | H22: /Frühstück
B23: = (Unternehmergewinn + Lohnansatz) / Zahl der nicht entlohnten Akh
B25: kostendeckender Preis pro Frühstück
B26: = notwendinger Mindestpreis zur Erreichung eines Deckungsbeitrags | G26: =G4 -> 5.265524889 | H26: /Frühstück
B27: = notwendinger Mindestpreis zur Erreichung eines Gewinns | G27: =G4+G8+G9+G10 -> 8.293561052 | H27: /Frühstück
B28: = notwendinger Mindestpreis zur Erreichung eines Unternehmergewinns | G28: =G4+G8+G9+G15+G16+G17+G10 -> 14.95157069 | H28: /Frühstück
A36: Bayerische Landesanstalt für Landwirtschaft, Institut für Betriebswirtschaft und Agrarstruktur, Dezember 2021

Sheet 4) DB Grafik
A65: Bayerische Landesanstalt für Landwirtschaft, Institut für Betriebswirtschaft und Agrarstruktur, Dezember 2021

Sheet 5) Ergebnis DB ausführlich
B3: ALLGEMEINE ANGABEN
B5: ='1) Wareneinsatz'!A2 -> Eingabefelder
B7: ='1) Wareneinsatz'!A4 -> Bruttorechner
B8: ='1) Wareneinsatz'!A5 -> TRUE
B9: FWG Kategorie | C9: Anzahl FWG | D9: Belegtage je FWG u. Jahr | E9: durchschn. Belegung | F9: Anzahl Übernachtungen je Jahr
E11: Personen/FWG
B12: klein (bis 2 Pers.) | C12: ='2) Angaben DB'!B9 -> 1 | D12: ='2) Angaben DB'!C9 -> 174 | E12: ='2) Angaben DB'!D9 -> 2 | F12: =E12*D12*C12 -> 348
B13: mittel (bis 4 Pers.) | C13: ='2) Angaben DB'!B10 -> 2 | D13: ='2) Angaben DB'!C10 -> 174 | E13: ='2) Angaben DB'!D10 -> 3 | F13: =E13*D13*C13 -> 1044
B14: gross (bis 6 Pers.) | C14: ='2) Angaben DB'!B11 -> 1 | D14: ='2) Angaben DB'!C11 -> 174 | E14: ='2) Angaben DB'!D11 -> 5 | F14: =E14*D14*C14 -> 870
B15: Summe | C15: =SUM(C12:C14) -> 4 | F15: =SUM(F12:F14) -> 2262
B16: Durchschnitt | D16: =((C12*D12)+(C13*D13)+(C14*D14))/C15 -> 174 | E16: =(E12+E13+E13+E14)/C15 -> 3.25
B18: MARKTLEISTUNG
B19: Durchschnittserlös Verpflegung
B21: Anteil Gäste mit Verpflegung | C21: ='2) Angaben DB'!B17 -> 0.5 | D21: =F15*C21 -> 1131 | E21: Frühstücksport./Jahr
C23: Verkaufspreis €/Portion | D23: Anteil Erwachsene/Kinder | E23: Frühstücks-portionen/Jahr | F23: Mischpreis Erwachsene/Kinder
B24: Erwachsene | C24: =IF(B8, '2) Angaben DB'!B20, ('2) Angaben DB'!B20/1.19)) -> 15 | D24: ='2) Angaben DB'!C20 -> 0.6 | E24: =D21*D24 -> 678.6 | F24: =C24*D24+C25*D25 -> 13
B25: Kinder | C25: =IF(B8, '2) Angaben DB'!B21, ('2) Angaben DB'!B21/1.19)) -> 10 | D25: =1-D24 -> 0.4 | E25: =D21*D25 -> 452.4
B27: Gesamterlös aus Frühstücksangebot | E27: =IF(B8, (F15*C21*((C24*D24)+(C25*D25))), ((F15*C21*((C24*D24)+(C25*D25)))/1.19)) -> 14703 | F27: /Betrieb u. Jahr | H27: =E27/'2) Angaben DB'!D17 -> 13 | I27: /Frühstück
B29: VARIABLE KOSTEN
B30: Kosten Wareneinsatz Frühstück
C31: Wareneinsatz €/Portion | D31: Anteil Erwachsene/Kinder
B32: Erwachsene | C32: ='1) Wareneinsatz'!G58 -> 4.64475 | D32: =D24 -> 0.6
B33: Kinder | C33: ='1) Wareneinsatz'!L58 -> 2.41075 | D33: =D25 -> 0.4
B35: Wareneinsatz gesamt | E35: =F15*C21*((C32*D32)+(C33*D33)) -> 4242.55065 | F35: /Betrieb u. Jahr | H35: =E35/'2) Angaben DB'!D17 -> 3.75115 | I35: /Frühstück
B37: Energie, Heizung, Wasser, Abwasser
B39: Strom | C39: 14.6 | D39: kWh/Belegtag
C40: =IF(B8, 0.29, (0.29/1.19)) -> 0.29 | D40: €/kWh
E41: =C39*C40*D16 -> 736.716 | F41: €/Betrieb u. Jahr | H41: =E41/'2) Angaben DB'!D17 -> 0.6513846154 | I41: /Frühstück
B43: Heizkosten | C43: m² | D43: €/m² | E43: €/Jahr
B44: Küche | C44: ='2) Angaben DB'!B30 -> 20 | D44: =IF(B8, 10.7, (10.7/1.19)) -> 10.7 | E44: =C44*D44 -> 214
B45: Speiseraum | C45: ='2) Angaben DB'!B31 -> 40 | D45: =IF(B8, 10.7, (10.7/1.19)) -> 10.7 | E45: =C45*D45 -> 428
E46: =E44+E45 -> 642 | F46: €/Betrieb u. Jahr | H46: =E46/'2) Angaben DB'!D17 -> 0.5676392573 | I46: /Frühstück
B48: Wasser | C48: Abwasser | D48: für Spülen
B49: 5 | C49: =B49 -> 5 | D49: l/Vorgang
B50: 2 | C50: =B50 -> 2 | D50: Vorgänge/Belegtag
B51: =IF(B8, 1.62, (1.62/0.19)) -> 1.62 | C51: =IF(B8, 1.98, (1.98/0.19)) -> 1.98 | D51: €/m³
B52: =B51/1000*B49*B50 -> 0.0162 | C52: =C51/1000*C49*C50 -> 0.0198 | D52: €/Belegtag
B53: =B49*B50*D16 -> 1740 | C53: =C49*C50*D16 -> 1740 | D53: l/Jahr
B54: =B52*D16 -> 2.8188 | C54: =C52*D16 -> 3.4452 | E54: =B54+C54 -> 6.264 | F54: €/Betrieb u. Jahr | H54: =E54/'2) Angaben DB'!D17 -> 0.005538461538 | I54: /Frühstück
E56: =E41+E46+E54 -> 1384.98 | F56: /Betrieb u. Jahr | H56: =E56/'2) Angaben DB'!D17 -> 1.224562334 | I56: /Frühstück
D57: entspricht | E57: =E56/E27 -> 0.09419710263 | F57: vom Gesamterlös
B59: Reinigung
B60: Unterhaltsreinigung abhängig von der Anzahl der Belegtage | C60: €/Frühstück | D60: €/Betrieb u. Jahr
B61: Speiseraum | C61: =IF(B8, ((1.35/25*'2) Angaben DB'!B31)*D16/F15*C21), (((1.35/25*'2) Angaben DB'!B31)*D16/F15*C21)/1.19)) -> 0.08307692308 | D61: =C61*F15*C21 -> 93.96
B62: Küche | C62: =IF(B8, (((0.04+0.06+0.05)/5*'2) Angaben DB'!B30)*D16/F15*C21), ((((0.04+0.06+0.05)/5*'2) Angaben DB'!B30)*D16/F15*C21)/1.19)) -> 0.02307692308 | D62: =C62*F15*C21 -> 26.1
B63: Grundreinigung (Annahme: zweimal jährlich)
B64: Speiseraum | C64: =IF(B8, (3.01/25*'2) Angaben DB'!B31*2/F15*C21), ((3.01/25*'2) Angaben DB'!B31*2/F15*C21)/1.19)) -> 0.002129089302 | D64: =C64*F15*C21 -> 2.408
B65: Küche | C65: =IF(B8, ((((0.03+0.56)*6)+((0.02+0.02)*12)+(0.03*D16))/F15*C21), (((((0.03+0.56)*6)+((0.02+0.02)*12)+(0.03*D16))/F15*C21)/1.19)) -> 0.002042440318 | D65: =C65*F15*C21 -> 2.31
E66: =SUM(D61:D65) -> 124.778 | F66: /Betrieb u. Jahr | H66: =E66/'2) Angaben DB'!D17 -> 0.1103253758 | I66: /Frühstück
B68: Lohnkosten für Aushilfkräfte
B69: Aushilfs-Arbeitskräfte sind entlohnte Fremdarbeitskräfte, die nicht zum ständigen Personal gehören.
B71: Arbeitsbereich | C71: Arbeitszeitaufwand pro Frühstück
B72: Verpflegung inkl. Anrichten, Spülen | C72: 10 | D72: Akmin
B73: Management anteilig | C73: =7.6*0.1 -> 0.76 | D73: Akmin
B74: Betreuuung der Gäste anteilig | C74: =6*0.1 -> 0.6 | D74: Akmin
B75: Reinigung Speiseraum | C75: =(107.4/25*'2) Angaben DB'!B31*D16/F15*C21)+(71.9/25*'2) Angaben DB'!B31*2/F15*C21) -> 6.660088417 | D75: Akmin
B76: Reinigung Küche | C76: =((((3.1+3.1+7)/5*'2) Angaben DB'!B30)*D16/F15*C21))+(((((20+15)*6)+((9+5)*12)+(2*D16))/F15*C21)) -> 2.191246684 | D76: Akmin
B77: Gesamt Akmin | C77: =SUM(C72:C76) -> 20.2113351 | D77: Akmin
B78: ergibt Akh pro Frühstück | C78: =C77/60 -> 0.336855585 | D78: Akh
B80: ergibt Akh pro Betrieb und Jahr | C80: =C78*F15*C21 -> 380.9836667 | D80: Akh/Betrieb u. Jahr
B82: Erledigung der Arbeit durch Aushilfs-AK | C82: ='2) Angaben DB'!B25 -> 0 | D82: h/Woche
B83: entspricht | C83: =C82*50/C80 -> 0 | D83: des Gesamtarbeitsbedarfes
B84: Entlohnung | C84: 13.4 | D84: /Akh
E85: =C83*C80*C84 -> 0 | F85: /Betrieb u. Jahr | H85: =E85/'2) Angaben DB'!D17 -> 0 | I85: /Frühstück
B86: Quelle: KTBL Datensammlung Urlaub auf dem Lande (2006), LfL-Kennzahlenermittlung 2012, 2017
B88: Sonstige variable Kosten | C88: durchschnittl. Entfernung in km
D89: €/km
B90: Krafstoff für 2 Einkaufsfahrten pro Woche | C90: 5 | D90: =IF(B8, 0.35, (0.35/1.19)) -> 0.35 | E90: =D16/6*2*C90*2*D90 -> 203 | F90: /Betrieb u. Jahr | H90: =E90/'2) Angaben DB'!D17 -> 0.1794871795 | I90: /Frühstück
B92: = SUMME VARIABLE KOSTEN | E92: =E35+E66+E56+E85+E90 -> 5955.30865 | F92: /Betrieb u. Jahr | H92: =E92/'2) Angaben DB'!D17 -> 5.265524889 | I92: /Frühstück
B94: = DECKUNGSBEITRAG Frühstücksangebot | E94: =E27-E35-E56-E66-E85-E90 -> 8747.69135 | F94: /Betrieb u. Jahr | H94: =E94/'2) Angaben DB'!D17 -> 7.734475111 | I94: /Frühstück
B99: VOLLKOSTENRECHNUNG
B101: = DECKUNGSBEITRAG Frühstücksangebot | J101: =E94 -> 8747.69135 | K101: /Betrieb u. Jahr | M101: =H94 -> 7.734475111 | N101: /Frühstück
B103: Investitionskosten | D103: Sitzplätze (in Abhängigkeit von Anzahl der FeWo u. durchschnittl. Belegung)
B104: Ausstattung | C104: m² | E104: €/m² bzw. €/Sitzplatz | F104: Investitions-kosten | G104: Finanzierung eigen % | H104: Finanzierung fremd % | I104: Abschreib-ungsdauer in Jahre | J104: Abschreibung €/Betrieb u. Jahr
B105: Küche | C105: =C44 -> 20 | E105: =IF('2) Angaben DB'!D30, (IF(B8, 'Datengrundlage Investition'!G36, 'Datengrundlage Investition'!G36/1.19)), 0) -> 750 | F105: =E105*C105 -> 15000 | G105: 0.5 | H105: =1-G105 -> 0.5 | I105: 10 | J105: =F105/I105 -> 1500
B106: Speiseraum | C106: ='2) Angaben DB'!B31 -> 40 | D106: =E16*C15 -> 13 | E106: =IF('2) Angaben DB'!D31, (IF(B8, 'Datengrundlage Investition'!G73, 'Datengrundlage Investition'!G73/1.19)), 0) -> 788.9884615 | F106: =E106*D106 -> 10256.85 | G106: 0.5 | H106: =1-G106 -> 0.5 | I106: 10 | J106: =F106/I106 -> 1025.685
B107: Gesamtinvestitionskosten für Ausstattung von | F107: =F105+F106 -> 25256.85 | G107: =AVERAGE(G105:G106) -> 0.5 | H107: =AVERAGE(H105:H106) -> 0.5 | J107: =J105+J106 -> 2525.685 | K107: / Betrieb u. Jahr
B109: Neubau | E109: €/m³
B110: Küche | C110: ='2) Angaben DB'!B30 -> 20 | E110: =IF('2) Angaben DB'!E30, (IF(B8, 385, (385/1.19))), 0) -> 0 | F110: =C110*2.4*E110 -> 0 | G110: 0.5 | H110: 0.5 | I110: 25 | J110: =F110/I110 -> 0
B111: Speiseraum | C111: ='2) Angaben DB'!B31 -> 40 | E111: =IF('2) Angaben DB'!E31, (IF(B8, 385, (385/1.19))), 0) -> 0 | F111: =C111*2.4*E111 -> 0 | G111: 0.5 | H111: 0.5 | I111: 25 | J111: =F111/I111 -> 0
B112: Gesamtinvestitionskosten für Neubau von | F112: =F110+F111 -> 0 | G112: =AVERAGE(G110:G111) -> 0.5 | H112: =AVERAGE(H110:H111) -> 0.5 | J112: =SUM(J110:J111) -> 0 | K112: / Betrieb u. Jahr
B114: Abschreibung gesamt | J114: =J107+J112 -> 2525.685 | K114: / Betrieb u. Jahr
B116: Instandhaltung | D116: 0.01 | E116: der Investitionssumme | J116: =D116*(F107+F112) -> 252.5685 | K116: / Betrieb u. Jahr
B117: Zinsaufwand | D117: 0.016 | E117: der halben fremdfinanzierten Investitionssumme | J117: =D117*0.5*((H107*F107)+(F112*H112)) -> 101.0274 | K117: / Betrieb u. Jahr
B119: Kapitalkosten Investition gesamt | J119: =J114+J116+J117 -> 2879.2809 | K119: / Betrieb u. Jahr | M119: =J119/'2) Angaben DB'!D17 -> 2.545783289 | N119: /Frühstück
B121: Personalkosten Arbeiten festangestellte AK
B122: Akh pro Betrieb und Jahr | C122: =C80 -> 380.9836667
B123: Erledigung Arbeit durch Festangestellte AK | C123: ='2) Angaben DB'!B26 -> 0 | D123: h/Woche
B124: entspricht | C124: =C123*50/C80 -> 0 | D124: des Gesamtarbeitsbedarfes
B125: Entlohnung | C125: 19.5 | D125: /Akh
J126: =C124*C122*C125 -> 0 | K126: /Betrieb u. Jahr | M126: =J126/'2) Angaben DB'!D17 -> 0 | N126: /Frühstück
B128: Sonstige Festkosten
B129: Internet, Kabel, Telefon (anteilig) | J129: =IF(B8, 280, 280/1.19) -> 280 | K129: / Betrieb u. Jahr
B130: Fernseh-/Radiogebühren | J130: =IF(B8, (5.83*12*(C15-1)), ((5.83*12*(C15-1))/1.19)) -> 209.88 | K130: / Betrieb u. Jahr
B131: Sonstige Gebühren | J131: =IF(B8, 152, (152/1.19)) -> 152 | K131: / Betrieb u. Jahr
B132: Klassifizierungskosten, Mitgliedschaften in Verbänden | J132: =IF(B8, 611.4, (611.4/1.19)) -> 611.4 | K132: / Betrieb u. Jahr
B133: Werbungskosten | J133: =IF(B8, 3500, (3500/1.19)) -> 3500 | K133: / Betrieb u. Jahr
B134: Versicherungen | J134: =IF(B8, (109+230+147), ((109+230+147)/1.19)) -> 486 | K134: / Betrieb u. Jahr
B135: Steuern | J135: 215 | K135: / Betrieb u. Jahr
B136: Weitere feste Kosten | J136: 0 | K136: / Betrieb u. Jahr
B137: Summe | J137: =SUM(J129:J136) -> 5454.28 | K137: / Betrieb u. Jahr
B138: anteilig auf das Frühstücksangebot | I138: 0.1 | J138: =J137*I138 -> 545.428 | K138: / Betrieb u. Jahr | M138: =J138/'2) Angaben DB'!D17 -> 0.4822528736 | N138: /Frühstück
B141: Deckungsbeitrag Frühstücksangebot | J141: =E94 -> 8747.69135 | K141: / Betrieb u. Jahr
A142: - | B142: =B103 -> Investitionskosten | J142: =J119 -> 2879.2809 | K142: / Betrieb u. Jahr
A143: - | B143: =B121 -> Personalkosten Arbeiten festangestellte AK | J143: =J126 -> 0 | K143: / Betrieb u. Jahr
A144: - | B144: =B128 -> Sonstige Festkosten | J144: =J137*0.1 -> 545.428 | K144: / Betrieb u. Jahr
A145: = | B145: GEWINNBEITRAG | J145: =J141-J142-J143-J144 -> 5322.98245 | K145: / Betrieb u. Jahr | M145: =J145/'2) Angaben DB'!D17 -> 4.706438948 | N145: /Frühstück
A147: - | B147: KALKULATORISCHE FAKTORKOSTEN
B148: Kalkulatorische Faktorkosten sind Ansätze für die Entlohnung der eigenen Produktionsfaktoren (Arbeit, Kapital).
B150: Zinsansatz eigenfinanzierte Investition | C150: 0.016 | D150: der halben eigenfinanzierten Investitionssumme | J150: =C150*0.5*((G107*F107)+(F112*G112)) -> 101.0274 | K150: / Betrieb u. Jahr | M150: =J150/'2) Angaben DB'!D17 -> 0.08932572944 | N150: /Frühstück
B152: Lohnansatz nicht entlohnte AK
B153: Akh pro Betrieb und Jahr | C153: =C80 -> 380.9836667
B154: Erledigung Arbeit durch nicht entlohnte AK | C154: =1-C83-C124 -> 1 | D154: des Gesamtarbeitsbedarfes
B155: Lohnansatz nicht entlohnte AK | C155: 19.5 | D155: /Akh | J155: =C153*C154*C155 -> 7429.1815 | K155: / Betrieb u. Jahr | M155: =J155/'2) Angaben DB'!D17 -> 6.568683908 | N155: /Frühstück
B157: Zinsansatz Umlaufkapital | J157: 0 | K157: / Betrieb u. Jahr | M157: =J157/'2) Angaben DB'!D17 -> 0 | N157: /Frühstück
A160: = | B160: Unternehmergewinn | J160: =J145-J150-J155 -> -2207.22645 | K160: / Betrieb u. Jahr | M160: =J160/'2) Angaben DB'!D17 -> -1.95157069 | N160: /Frühstück
B161: = Gewinnbeitrag - kalkulatorische Faktorkosten
B163: Arbeitsertrag je nicht entlohnter Akh | J163: =J160/(C153*C154) -> -5.793493641 | K163: / Akh | M163: =J163/'2) Angaben DB'!D17 -> -0.005122452379 | N163: /Frühstück
B164: = (Unternehmergewinn + Lohnansatz) / Zahl der nicht entlohnten Akh
B166: kostendeckender Preis pro Frühstück
B167: = notwendinger Mindestpreis zur Erreichung eines Deckungsbeitrags | E167: =H92 -> 5.265524889 | F167: /Frühstück
B168: = notwendinger Mindestpreis zur Erreichung eines Gewinns | E168: =H92+M119+M126+M138 -> 8.293561052 | F168: /Frühstück
B169: = notwendinger Mindestpreis zur Erreichung eines Unternehmergewinns | E169: =H92+M119+M126+M138+M150+M155+M157 -> 14.95157069 | F169: /Frühstück
A177: Bayerische Landesanstalt für Landwirtschaft, Institut für Betriebswirtschaft und Agrarstruktur, Dezember 2021

Sheet Datengrundlage Investition
A1: Boden
A2: - rutschfest
A3: - leichtes Gefälle
A4: - Ablaufrinnen/öffnungen
A6: Lüftungsanlage ab Gesamtleistung der Küchengeräte über 25 kW
A8: Abluftanlagen über allen thermischen Geräten (+ Fettfilter!)
A9: -> + Zuluftanlage
A11: Brandschutz: alle Wände und Decken aus nichtbrennbaren Material + ausreichend Löschmöglichkeiten!
A13: Schmutzwasserausguss
A15: Wandflächen
A16: - leicht zu reinigen/desinfizieren
A18: Spülbecken getrennt vom Handwaschbecken
A20: http://www.onlinehilfe-lebensmittelhygiene.de/
A21: http://www.onlinehilfe-lebensmittelhygiene.de/gastronomie/
A23: KÜCHE
A24: Handwaschbecken | F24: 300 | H24: https://www.gastro-hero.de/Spültechnik/Spülmöbel/Handwaschbecken
A25: Spülbecken | F25: 500 | H25: https://www.gastro-hero.de/Edelstahlmöbel/Spültische
A26: Edelstahlarbeitsfläche mit Unterschrank | E26: 800 | F26: 1000 | H26: https://www.gastprodo.com/edelstahl-arbeitsschraenke/ | O26: https://www.gastro-hero.de/Edelstahlmöbel/Arbeitsschränke/Arbeitsschränke-mit-Schubladenblock
A27: Abzug | F27: 800 | H27: https://www.gastroplus24.de/de/lueftung/abzugshauben/wandhauben/
A28: Lüftung | F28: 500 | H28: https://www.gastroplus24.de/de/lueftung/lueftungsventilatoren/
A29: Elektroherd mit Umluftofen | F29: 2000 | H29: https://www.gastprodo.com/elektroherde/ | O29: https://www.gastro-hero.de/Kochgeräte/Herde
A30: Spülmaschine | E30: 1500 | F30: 2000 | H30: https://www.gastprodo.com/geschirrspuelmaschinen/ | O30: https://www.maran-pro.com/de/electrolux/spültechnik/untertischspülmaschinen/untertischspülmaschinen/
A31: Kühlschrank | F31: 1000 | H31: https://www.maran-pro.com/de/electrolux/kühltechnik/kühl_und_tiefkühlschränke/400_l/ | O31: https://www.gastro-hero.de/Kühltechnik/Kühlschränke/Lagerkühlschränke
A32: Kaffeemaschine | E32: 1500 | F32: 2000
A33: Fliesen Boden | B33: 120 | C33: pro m² | D33: ='5) Ergebnis DB ausführlich'!C44 -> 20 | E33: m² | F33: =B33*D33 -> 2400
A34: Sonstiges | F34: 2500
F36: =SUM(F24:F34) -> 15000 | G36: =F36/'5) Ergebnis DB ausführlich'!C44 -> 750 | H36: pro m²
A38: SPEISERAUM
A39: Anzahl -> Annahme: Frühstücksraum mit 3 Tischen mit 12 Stühlen | F39: ='5) Ergebnis DB ausführlich'!D106 -> 13 | H39: https://www.gastro-hero.de/Gastraum/
A41: Stühle und Tische | C41: circa 100 Euro pro Sitzplatz? | E41: Anzahl
A42: Stühle | C42: 50 | D42: 100 | E42: 14 | F42: =D42*E42 -> 1400
A43: Tische | D43: 1000 | E43: 3 | F43: =D43*E43 -> 3000
A44: Deko, restl. Einrichtung | C44: 1000 | D44: 2500 | E44: 1 | F44: =D44*E44 -> 2500
A45: Tischdecken | D45: 30 | E45: 6 | F45: =D45*E45 -> 180
A46: Parkett Speiseraum | B46: 50 | C46: pro m² | D46: ='5) Ergebnis DB ausführlich'!C45 -> 40 | E46: m² | F46: =B46*D46 -> 2000
A47: Geschirr
A48: Teller klein | D48: 4.5 | E48: 20 | F48: =D48*E48 -> 90
A49: Capuccinotassen | D49: 4.75 | E49: 15 | F49: 71.25
A50: Kaffeebecher | D50: 5.15 | E50: 15 | F50: 77.25
A51: Kaffeetassen | D51: 4.95 | E51: 15 | F51: 74.25
A52: Espressotassen | D52: 3.5 | E52: 10 | F52: 35
A53: Unterteller | D53: 3.2 | E53: 20 | F53: 64
A54: Müslischüssel | D54: 8 | E54: 20 | F54: 160
A55: Eierbecher | D55: 3.79 | E55: 15 | F55: 56.85
A56: Zuckerdose | D56: 14.5 | E56: 5 | F56: 72.5
A57: Milchkännchen | D57: 11.9 | E57: 5 | F57: 59.5
A58: Salzstreuer | D58: 10.9 | E58: 5 | F58: 54.5
A59: Pfefferstreuer | D59: 10.9 | E59: 5 | F59: 54.5
A60: Brotkörbchen | D60: 6.49 | E60: 5 | F60: 32.45
A62: Besteck
A63: Kaffeelöffel | D63: 2.35 | E63: 20 | F63: =D63*E63 -> 47
A64: Messer | D64: 2.75 | E64: 20 | F64: =D64*E64 -> 55
A65: Löffel | D65: 3.45 | E65: 20 | F65: =D65*E65 -> 69
A66: Gabel | D66: 2.35 | E66: 20 | F66: =D66*E66 -> 47
A68: Gläser
A69: 36 cl | D69: 1.35 | E69: 20 | F69: =D69*E69 -> 27
A70: 51 cl | D70: 1.49 | E70: 20 | F70: =D70*E70 -> 29.8
F73: =SUM(F42:F70) -> 10256.85 | G73: =F73/F39 -> 788.9884615 | H73: pro Sitzplatz
A76: SUMME Ausstattung Küche und Speiseraum | F76: =F73+F36 -> 25256.85
A80: Bayerische Landesanstalt für Landwirtschaft, Institut für Betriebswirtschaft und Agrarstruktur, 2021
